[Event "Titled Tuesday Blitz January 31 Early 2023"]
[White "Mosadeghpour, Masoud"]
[Black "Maksimovic, Bojan"]
[WhiteFideId "12519278"]
[BlackFideId "14408120"]
[WhiteElo "2472"]
[BlackElo "2486"]
[Result "1-0"]
[Round "04"]
[TimeControl "180+2"]
[Date "2023.01.31"]
[WhiteClock "0:00:21"]
[BlackClock "0:00:01"]

1. e4 {[%clk 0:03:00]}  c5 {[%clk 0:02:58]} 2. d4 {[%clk 0:02:59]}  cxd4 {[%clk 0:02:58]} 3. c3 {[%clk 0:03:00]}  dxc3 {[%clk 0:02:57]} 4. Nxc3 {[%clk 0:03:01]}  Nc6 {[%clk 0:02:56]} 5. Nf3 {[%clk 0:03:01]}  e6 {[%clk 0:02:54]} 6. Bc4 {[%clk 0:03:02]}  a6 {[%clk 0:02:52]} 7. O-O {[%clk 0:03:02]}  Nge7 {[%clk 0:02:49]} 8. Bg5 {[%clk 0:03:02]}  f6 {[%clk 0:02:43]} 9. Be3 {[%clk 0:03:02]}  Ng6 {[%clk 0:02:43]} 10. Bb3 {[%clk 0:03:02]}  Be7 {[%clk 0:02:36]} 11. Na4 {[%clk 0:03:02]}  O-O {[%clk 0:02:27]} 12. Nb6 {[%clk 0:02:59]}  Rb8 {[%clk 0:02:27]} 13. Rc1 {[%clk 0:03:00]}  Rf7 {[%clk 0:02:09]} 14. Qe2 {[%clk 0:02:57]}  Nf8 {[%clk 0:02:07]} 15. Rfd1 {[%clk 0:02:56]}  Qe8 {[%clk 0:02:04]} 16. a3 {[%clk 0:02:53]}  Kh8 {[%clk 0:02:03]} 17. Ba2 {[%clk 0:02:52]}  g5 {[%clk 0:01:40]} 18. Nd4 {[%clk 0:02:40]}  Rg7 {[%clk 0:01:34]} 19. Nb3 {[%clk 0:02:34]}  Bd8 {[%clk 0:01:26]} 20. Nc4 {[%clk 0:02:28]}  g4 {[%clk 0:00:53]} 21. Nd6 {[%clk 0:02:24]}  Qh5 {[%clk 0:00:52]} 22. Nc5 {[%clk 0:02:18]}  Ne5 {[%clk 0:00:47]} 23. Bf4 {[%clk 0:02:07]}  Nfg6 {[%clk 0:00:13]} 24. Bg3 {[%clk 0:02:07]}  Qg5 {[%clk 0:00:13]} 25. Nd3 {[%clk 0:02:03]}  Nxd3 {[%clk 0:00:09]} 26. Qxd3 {[%clk 0:02:04]}  Ne5 {[%clk 0:00:03]} 27. Bxe5 {[%clk 0:01:37]}  Qxe5 {[%clk 0:00:04]} 28. Rxc8 {[%clk 0:01:34]}  Rxc8 {[%clk 0:00:04]} 29. Nxc8 {[%clk 0:01:35]}  Qxb2 {[%clk 0:00:04]} 30. Bxe6 {[%clk 0:01:32]}  Bc7 {[%clk 0:00:01]} 31. Bf5 {[%clk 0:01:17]}  Qe5 {[%clk 0:00:02]} 32. g3 {[%clk 0:01:17]}  h5 {[%clk 0:00:01]} 33. Qd4 {[%clk 0:01:13]}  Qxd4 {[%clk 0:00:01]} 34. Rxd4 {[%clk 0:01:13]}  Be5 {[%clk 0:00:01]} 35. Rxd7 {[%clk 0:01:13]}  Rxd7 {[%clk 0:00:01]} 36. Bxd7 {[%clk 0:01:14]}  b5 {[%clk 0:00:01]} 37. Na7 {[%clk 0:01:04]}  Bb2 {[%clk 0:00:01]} 38. Bc8 {[%clk 0:01:04]}  Bxa3 {[%clk 0:00:01]} 39. Bxa6 {[%clk 0:01:04]}  b4 {[%clk 0:00:02]} 40. Bc4 {[%clk 0:01:04]}  Kg7 {[%clk 0:00:03]} 41. Nc6 {[%clk 0:01:03]}  Kf8 {[%clk 0:00:03]} 42. Kf1 {[%clk 0:01:02]}  Ke8 {[%clk 0:00:03]} 43. Be6 {[%clk 0:01:03]}  Kf8 {[%clk 0:00:02]} 44. Ke2 {[%clk 0:01:03]}  Kg7 {[%clk 0:00:02]} 45. f3 {[%clk 0:01:01]}  gxf3+ {[%clk 0:00:02]} 46. Kxf3 {[%clk 0:01:02]}  Kg6 {[%clk 0:00:02]} 47. h3 {[%clk 0:01:01]}  Kg5 {[%clk 0:00:02]} 48. h4+ {[%clk 0:00:55]}  Kg6 {[%clk 0:00:03]} 49. Bb3 {[%clk 0:00:49]}  Kh6 {[%clk 0:00:02]} 50. Kf4 {[%clk 0:00:43]}  Kg6 {[%clk 0:00:02]} 51. Ne7+ {[%clk 0:00:43]}  Kg7 {[%clk 0:00:03]} 52. Kf5 {[%clk 0:00:43]}  Bb2 {[%clk 0:00:02]} 53. Nc6 {[%clk 0:00:40]}  Bc3 {[%clk 0:00:02]} 54. Bd1 {[%clk 0:00:34]}  Kh6 {[%clk 0:00:03]} 55. Kf4 {[%clk 0:00:28]}  Bd2+ {[%clk 0:00:03]} 56. Kf3 {[%clk 0:00:28]}  Bc3 {[%clk 0:00:04]} 57. Ne7 {[%clk 0:00:27]}  Kg7 {[%clk 0:00:04]} 58. Nd5 {[%clk 0:00:23]}  Be1 {[%clk 0:00:04]} 59. Kg2 {[%clk 0:00:18]}  Kh6 {[%clk 0:00:04]} 60. Nf4 {[%clk 0:00:17]}  Bd2 {[%clk 0:00:02]} 61. Nxh5 {[%clk 0:00:18]}  b3 {[%clk 0:00:02]} 62. Nxf6 {[%clk 0:00:17]}  b2 {[%clk 0:00:02]} 63. Bc2 {[%clk 0:00:18]}  Kg6 {[%clk 0:00:02]} 64. Ng4 {[%clk 0:00:18]}  Kf7 {[%clk 0:00:02]} 65. Kf3 {[%clk 0:00:19]}  Ke6 {[%clk 0:00:02]} 66. Bb1 {[%clk 0:00:19]}  Be1 {[%clk 0:00:02]} 67. Ne3 {[%clk 0:00:20]}  Kf6 {[%clk 0:00:02]} 68. Nd1 {[%clk 0:00:20]}  Bxg3 {[%clk 0:00:01]} 69. Kxg3 {[%clk 0:00:20]}  Ke5 {[%clk 0:00:01]} 70. Nxb2 {[%clk 0:00:21]} 1-0


[Site "https://www.chess.com"]

[Event "Titled Tuesday Blitz January 31 Early 2023"]
[White "Zierk, Steven"]
[Black "Boros, Denes"]
[WhiteFideId "2034255"]
[BlackFideId "722340"]
[WhiteElo "2488"]
[BlackElo "2406"]
[Result "1/2-1/2"]
[Round "04"]
[TimeControl "180+2"]
[Date "2023.01.31"]
[WhiteClock "0:00:09"]
[BlackClock "0:00:17"]

1. e4 {[%clk 0:03:00]}  g6 {[%clk 0:03:00]} 2. d4 {[%clk 0:03:01]}  d5 {[%clk 0:03:00]} 3. exd5 {[%clk 0:02:59]}  Qxd5 {[%clk 0:03:01]} 4. c4 {[%clk 0:02:54]}  Qd8 {[%clk 0:03:00]} 5. Nc3 {[%clk 0:02:53]}  Bg7 {[%clk 0:03:00]} 6. Be3 {[%clk 0:02:54]}  Nh6 {[%clk 0:03:01]} 7. Bxh6 {[%clk 0:02:17]}  Bxh6 {[%clk 0:03:01]} 8. Nf3 {[%clk 0:02:17]}  Bg4 {[%clk 0:02:55]} 9. Be2 {[%clk 0:02:17]}  c6 {[%clk 0:02:49]} 10. O-O {[%clk 0:02:11]}  Bg7 {[%clk 0:02:43]} 11. Qb3 {[%clk 0:02:04]}  Qb6 {[%clk 0:02:38]} 12. Na4 {[%clk 0:01:45]}  Qc7 {[%clk 0:02:37]} 13. Rad1 {[%clk 0:01:39]}  Nd7 {[%clk 0:02:33]} 14. h3 {[%clk 0:01:39]}  Bxf3 {[%clk 0:02:24]} 15. Bxf3 {[%clk 0:01:40]}  O-O {[%clk 0:02:19]} 16. Rfe1 {[%clk 0:01:40]}  e6 {[%clk 0:02:07]} 17. d5 {[%clk 0:01:37]}  exd5 {[%clk 0:01:41]} 18. cxd5 {[%clk 0:01:38]}  Ne5 {[%clk 0:01:42]} 19. dxc6 {[%clk 0:01:28]}  bxc6 {[%clk 0:01:36]} 20. Be2 {[%clk 0:01:18]}  Qa5 {[%clk 0:01:25]} 21. Qc2 {[%clk 0:01:13]}  c5 {[%clk 0:01:10]} 22. b3 {[%clk 0:01:11]}  Rac8 {[%clk 0:01:07]} 23. Bc4 {[%clk 0:01:09]}  Rcd8 {[%clk 0:00:59]} 24. Re4 {[%clk 0:00:46]}  Kh8 {[%clk 0:00:38]} 25. Rde1 {[%clk 0:00:44]}  Nc6 {[%clk 0:00:33]} 26. Kf1 {[%clk 0:00:30]}  Rd2 {[%clk 0:00:32]} 27. Qc1 {[%clk 0:00:22]}  Rxa2 {[%clk 0:00:24]} 28. Re8 {[%clk 0:00:19]}  Qd2 {[%clk 0:00:23]} 29. Qxd2 {[%clk 0:00:16]}  Rxd2 {[%clk 0:00:23]} 30. Nxc5 {[%clk 0:00:17]}  h5 {[%clk 0:00:19]} 31. Rxf8+ {[%clk 0:00:13]}  Bxf8 {[%clk 0:00:20]} 32. Ne4 {[%clk 0:00:13]}  Rc2 {[%clk 0:00:13]} 33. Bxf7 {[%clk 0:00:12]}  Kg7 {[%clk 0:00:13]} 34. Bd5 {[%clk 0:00:09]}  Bb4 {[%clk 0:00:13]} 35. Rd1 {[%clk 0:00:08]}  Ne5 {[%clk 0:00:12]} 36. f4 {[%clk 0:00:07]}  Nf7 {[%clk 0:00:11]} 37. Bxf7 {[%clk 0:00:07]}  Kxf7 {[%clk 0:00:12]} 38. Rd7+ {[%clk 0:00:07]}  Ke6 {[%clk 0:00:13]} 39. Rxa7 {[%clk 0:00:07]}  Kf5 {[%clk 0:00:13]} 40. Nf2 {[%clk 0:00:06]}  Rxf2+ {[%clk 0:00:10]} 41. Kxf2 {[%clk 0:00:07]}  Bc5+ {[%clk 0:00:11]} 42. Kf3 {[%clk 0:00:07]}  Bxa7 {[%clk 0:00:11]} 43. g4+ {[%clk 0:00:08]}  hxg4+ {[%clk 0:00:11]} 44. hxg4+ {[%clk 0:00:09]}  Ke6 {[%clk 0:00:12]} 45. Ke4 {[%clk 0:00:08]}  Kf6 {[%clk 0:00:12]} 46. b4 {[%clk 0:00:08]}  Ke6 {[%clk 0:00:13]} 47. b5 {[%clk 0:00:09]}  Bb6 {[%clk 0:00:13]} 48. f5+ {[%clk 0:00:08]}  gxf5+ {[%clk 0:00:14]} 49. gxf5+ {[%clk 0:00:08]}  Kf6 {[%clk 0:00:15]} 50. Kf4 {[%clk 0:00:08]}  Bc7+ {[%clk 0:00:14]} 51. Ke4 {[%clk 0:00:08]}  Bb6 {[%clk 0:00:15]} 52. Kf4 {[%clk 0:00:08]}  Bc7+ {[%clk 0:00:16]} 53. Ke4 {[%clk 0:00:09]}  Bb6 {[%clk 0:00:17]} 1/2-1/2


[Site "https://www.chess.com"]

[Event "Titled Tuesday Blitz January 31 Early 2023"]
[White "Hakobyan, Aram"]
[Black "Fier, Alexandr"]
[WhiteFideId "13306677"]
[BlackFideId "2107139"]
[WhiteElo "2608"]
[BlackElo "2589"]
[Result "1-0"]
[Round "04"]
[TimeControl "180+2"]
[Date "2023.01.31"]
[WhiteClock "0:01:45"]
[BlackClock "0:00:15"]

1. e4 {[%clk 0:03:00]}  c5 {[%clk 0:02:55]} 2. Nf3 {[%clk 0:03:00]}  a6 {[%clk 0:02:56]} 3. g3 {[%clk 0:03:00]}  e6 {[%clk 0:02:52]} 4. Bg2 {[%clk 0:03:00]}  Nc6 {[%clk 0:02:52]} 5. O-O {[%clk 0:02:59]}  Nf6 {[%clk 0:02:52]} 6. Nc3 {[%clk 0:02:50]}  d6 {[%clk 0:02:51]} 7. d4 {[%clk 0:02:50]}  cxd4 {[%clk 0:02:52]} 8. Nxd4 {[%clk 0:02:51]}  Bd7 {[%clk 0:02:52]} 9. Be3 {[%clk 0:02:40]}  Be7 {[%clk 0:02:51]} 10. f4 {[%clk 0:02:38]}  O-O {[%clk 0:02:49]} 11. h3 {[%clk 0:02:38]}  Nxd4 {[%clk 0:02:48]} 12. Bxd4 {[%clk 0:02:35]}  Bc6 {[%clk 0:02:49]} 13. a4 {[%clk 0:02:33]}  Nd7 {[%clk 0:02:48]} 14. Qd2 {[%clk 0:02:28]}  b5 {[%clk 0:02:38]} 15. f5 {[%clk 0:02:18]}  e5 {[%clk 0:00:56]} 16. Be3 {[%clk 0:02:15]}  Nf6 {[%clk 0:00:55]} 17. g4 {[%clk 0:02:05]}  b4 {[%clk 0:00:55]} 18. Nd5 {[%clk 0:02:05]}  Bxd5 {[%clk 0:00:55]} 19. exd5 {[%clk 0:02:04]}  a5 {[%clk 0:00:52]} 20. g5 {[%clk 0:02:03]}  Nd7 {[%clk 0:00:52]} 21. Be4 {[%clk 0:02:00]}  Nc5 {[%clk 0:00:41]} 22. Bxc5 {[%clk 0:02:00]}  dxc5 {[%clk 0:00:42]} 23. f6 {[%clk 0:01:59]}  Bd6 {[%clk 0:00:40]} 24. fxg7 {[%clk 0:01:49]}  Kxg7 {[%clk 0:00:36]} 25. Rf6 {[%clk 0:01:50]}  Be7 {[%clk 0:00:31]} 26. Raf1 {[%clk 0:01:48]}  Kh8 {[%clk 0:00:23]} 27. Rh6 {[%clk 0:01:46]}  Bxg5 {[%clk 0:00:20]} 28. Rxh7+ {[%clk 0:01:46]}  Kg8 {[%clk 0:00:21]} 29. Qg2 {[%clk 0:01:44]}  f5 {[%clk 0:00:15]} 30. Rh5 {[%clk 0:01:45]} 1-0


[Site "https://www.chess.com"]

[Event "Titled Tuesday Blitz January 31 Early 2023"]
[White "Drygalov, Sergey"]
[Black "Acor, Corey"]
[WhiteFideId "24171743"]
[BlackFideId "2024861"]
[WhiteElo "2547"]
[BlackElo "2216"]
[Result "1/2-1/2"]
[Round "04"]
[TimeControl "180+2"]
[Date "2023.01.31"]
[WhiteClock "0:00:06"]
[BlackClock "0:00:16"]

1. d4 {[%clk 0:02:58]}  Nf6 {[%clk 0:02:58]} 2. c4 {[%clk 0:02:58]}  e5 {[%clk 0:02:59]} 3. dxe5 {[%clk 0:02:56]}  Ng4 {[%clk 0:02:59]} 4. Bf4 {[%clk 0:02:57]}  Nc6 {[%clk 0:02:59]} 5. Nf3 {[%clk 0:02:57]}  Bb4+ {[%clk 0:03:00]} 6. Nbd2 {[%clk 0:02:57]}  Qe7 {[%clk 0:03:01]} 7. e3 {[%clk 0:02:57]}  Ngxe5 {[%clk 0:03:01]} 8. Nxe5 {[%clk 0:02:57]}  Nxe5 {[%clk 0:03:02]} 9. a3 {[%clk 0:02:58]}  Bxd2+ {[%clk 0:02:58]} 10. Qxd2 {[%clk 0:02:58]}  d6 {[%clk 0:02:57]} 11. Be2 {[%clk 0:02:58]}  O-O {[%clk 0:02:48]} 12. O-O {[%clk 0:02:58]}  b6 {[%clk 0:02:48]} 13. b4 {[%clk 0:02:57]}  Nd7 {[%clk 0:02:47]} 14. f3 {[%clk 0:02:53]}  Bb7 {[%clk 0:02:44]} 15. e4 {[%clk 0:02:53]}  f5 {[%clk 0:02:40]} 16. exf5 {[%clk 0:02:52]}  Rxf5 {[%clk 0:02:40]} 17. Bd3 {[%clk 0:02:52]}  Rff8 {[%clk 0:02:33]} 18. Rae1 {[%clk 0:02:50]}  Qf6 {[%clk 0:02:31]} 19. Bg5 {[%clk 0:02:50]}  Qd4+ {[%clk 0:02:17]} 20. Kh1 {[%clk 0:02:48]}  Kh8 {[%clk 0:02:17]} 21. Be3 {[%clk 0:02:35]}  Qf6 {[%clk 0:02:14]} 22. Bb1 {[%clk 0:02:35]}  Rae8 {[%clk 0:02:11]} 23. Bd4 {[%clk 0:02:34]}  Ne5 {[%clk 0:01:42]} 24. f4 {[%clk 0:02:02]}  Qf7 {[%clk 0:01:42]} 25. Qc2 {[%clk 0:01:30]}  Ng6 {[%clk 0:01:30]} 26. Rxe8 {[%clk 0:01:11]}  Rxe8 {[%clk 0:01:28]} 27. Qf2 {[%clk 0:01:01]}  Qxc4 {[%clk 0:01:16]} 28. Re1 {[%clk 0:00:09]}  Rxe1+ {[%clk 0:01:06]} 29. Qxe1 {[%clk 0:00:10]}  Nxf4 {[%clk 0:00:59]} 30. Qe8+ {[%clk 0:00:09]}  Qg8 {[%clk 0:01:00]} 31. Qe7 {[%clk 0:00:09]}  Bxg2+ {[%clk 0:00:43]} 32. Kg1 {[%clk 0:00:10]}  c5 {[%clk 0:00:43]} 33. Bxh7 {[%clk 0:00:06]}  Qxh7 {[%clk 0:00:24]} 34. Qd8+ {[%clk 0:00:07]}  Qg8 {[%clk 0:00:24]} 35. Qh4+ {[%clk 0:00:07]}  Qh7 {[%clk 0:00:20]} 36. Qd8+ {[%clk 0:00:07]}  Qg8 {[%clk 0:00:19]} 37. Qh4+ {[%clk 0:00:08]}  Qh7 {[%clk 0:00:16]} 38. Qd8+ {[%clk 0:00:06]} 1/2-1/2


[Site "https://www.chess.com"]

[Event "Titled Tuesday Blitz January 31 Early 2023"]
[White "Iliaguev, Nisim"]
[Black "Madaminov, Mukhiddin"]
[WhiteFideId "2817276"]
[BlackFideId "14210703"]
[WhiteElo "2402"]
[BlackElo "2422"]
[Result "1-0"]
[Round "04"]
[TimeControl "180+2"]
[Date "2023.01.31"]
[WhiteClock "0:00:34"]
[BlackClock "0:00:13"]

1. d4 {[%clk 0:02:55]}  Nf6 {[%clk 0:03:00]} 2. c4 {[%clk 0:02:54]}  g6 {[%clk 0:02:56]} 3. Nc3 {[%clk 0:02:50]}  d5 {[%clk 0:02:56]} 4. cxd5 {[%clk 0:02:50]}  Nxd5 {[%clk 0:02:57]} 5. e4 {[%clk 0:02:50]}  Nxc3 {[%clk 0:02:57]} 6. bxc3 {[%clk 0:02:50]}  Bg7 {[%clk 0:02:58]} 7. Nf3 {[%clk 0:02:50]}  c5 {[%clk 0:02:58]} 8. Be3 {[%clk 0:02:44]}  O-O {[%clk 0:02:54]} 9. Qd2 {[%clk 0:02:43]}  Nd7 {[%clk 0:02:21]} 10. Be2 {[%clk 0:02:41]}  Nf6 {[%clk 0:02:09]} 11. e5 {[%clk 0:02:14]}  Nd5 {[%clk 0:02:05]} 12. Bh6 {[%clk 0:02:05]}  Qa5 {[%clk 0:02:02]} 13. Bxg7 {[%clk 0:02:01]}  Kxg7 {[%clk 0:02:00]} 14. Rc1 {[%clk 0:02:00]}  Bg4 {[%clk 0:01:48]} 15. O-O {[%clk 0:01:52]}  Rfd8 {[%clk 0:01:32]} 16. Rfd1 {[%clk 0:01:45]}  e6 {[%clk 0:01:23]} 17. h3 {[%clk 0:01:36]}  Bxf3 {[%clk 0:01:23]} 18. Bxf3 {[%clk 0:01:36]}  Rac8 {[%clk 0:00:48]} 19. c4 {[%clk 0:01:25]}  Qxd2 {[%clk 0:00:47]} 20. Rxd2 {[%clk 0:01:24]}  cxd4 {[%clk 0:00:47]} 21. Rxd4 {[%clk 0:01:18]}  Nb4 {[%clk 0:00:43]} 22. Rxd8 {[%clk 0:01:16]}  Rxd8 {[%clk 0:00:42]} 23. Bxb7 {[%clk 0:01:17]}  Nxa2 {[%clk 0:00:40]} 24. Ra1 {[%clk 0:01:14]}  Rd2 {[%clk 0:00:35]} 25. c5 {[%clk 0:01:11]}  Rc2 {[%clk 0:00:35]} 26. c6 {[%clk 0:01:11]}  a5 {[%clk 0:00:34]} 27. Rxa2 {[%clk 0:00:48]}  Rxa2 {[%clk 0:00:29]} 28. c7 {[%clk 0:00:48]}  Ra1+ {[%clk 0:00:30]} 29. Kh2 {[%clk 0:00:48]}  Rc1 {[%clk 0:00:28]} 30. c8=Q {[%clk 0:00:48]}  Rxc8 {[%clk 0:00:28]} 31. Bxc8 {[%clk 0:00:49]}  a4 {[%clk 0:00:28]} 32. Ba6 {[%clk 0:00:49]}  a3 {[%clk 0:00:28]} 33. Bc4 {[%clk 0:00:50]}  Kf8 {[%clk 0:00:18]} 34. Kg3 {[%clk 0:00:49]}  Ke7 {[%clk 0:00:19]} 35. Kf4 {[%clk 0:00:49]}  Kd7 {[%clk 0:00:19]} 36. Kg5 {[%clk 0:00:41]}  h6+ {[%clk 0:00:08]} 37. Kxh6 {[%clk 0:00:38]}  Kc6 {[%clk 0:00:08]} 38. Kg7 {[%clk 0:00:38]}  Kc5 {[%clk 0:00:09]} 39. Ba2 {[%clk 0:00:37]}  Kd4 {[%clk 0:00:09]} 40. Kxf7 {[%clk 0:00:36]}  Kxe5 {[%clk 0:00:10]} 41. Bxe6 {[%clk 0:00:36]}  g5 {[%clk 0:00:10]} 42. Ba2 {[%clk 0:00:35]}  Kf4 {[%clk 0:00:11]} 43. Kg6 {[%clk 0:00:36]}  g4 {[%clk 0:00:11]} 44. hxg4 {[%clk 0:00:35]}  Kxg4 {[%clk 0:00:12]} 45. f3+ {[%clk 0:00:35]}  Kf4 {[%clk 0:00:09]} 46. Kh5 {[%clk 0:00:35]}  Kf5 {[%clk 0:00:09]} 47. Kh4 {[%clk 0:00:35]}  Kf4 {[%clk 0:00:10]} 48. g4 {[%clk 0:00:34]}  Kxf3 {[%clk 0:00:09]} 49. g5 {[%clk 0:00:34]}  Ke3 {[%clk 0:00:10]} 50. g6 {[%clk 0:00:34]}  Kd2 {[%clk 0:00:11]} 51. g7 {[%clk 0:00:35]}  Kc3 {[%clk 0:00:12]} 52. g8=Q {[%clk 0:00:35]}  Kb2 {[%clk 0:00:13]} 53. Qb3+ {[%clk 0:00:35]}  Ka1 {[%clk 0:00:13]} 54. Qb1# {[%clk 0:00:34]} 1-0


[Site "https://www.chess.com"]

[Event "Titled Tuesday Blitz January 31 Early 2023"]
[White "Moroni, Luca Jr"]
[Black "Nouri, Alekhine"]
[WhiteFideId "865834"]
[BlackFideId "5216184"]
[WhiteElo "2535"]
[BlackElo "2257"]
[Result "1/2-1/2"]
[Round "04"]
[TimeControl "180+2"]
[Date "2023.01.31"]
[WhiteClock "0:00:06"]
[BlackClock "0:00:04"]

1. d4 {[%clk 0:03:00]}  Nf6 {[%clk 0:02:59]} 2. Nf3 {[%clk 0:02:59]}  c5 {[%clk 0:02:58]} 3. c4 {[%clk 0:02:57]}  cxd4 {[%clk 0:02:57]} 4. Nxd4 {[%clk 0:02:58]}  Nc6 {[%clk 0:02:57]} 5. Nc3 {[%clk 0:02:57]}  g6 {[%clk 0:02:57]} 6. e4 {[%clk 0:02:56]}  Bg7 {[%clk 0:02:57]} 7. Be2 {[%clk 0:02:56]}  O-O {[%clk 0:02:56]} 8. Be3 {[%clk 0:02:55]}  d6 {[%clk 0:02:55]} 9. O-O {[%clk 0:02:54]}  Qa5 {[%clk 0:02:44]} 10. h3 {[%clk 0:02:40]}  Be6 {[%clk 0:02:43]} 11. Nxe6 {[%clk 0:02:31]}  fxe6 {[%clk 0:02:43]} 12. a3 {[%clk 0:02:29]}  Rac8 {[%clk 0:02:40]} 13. b4 {[%clk 0:02:24]}  Qe5 {[%clk 0:02:37]} 14. Qd3 {[%clk 0:02:24]}  Nh5 {[%clk 0:02:32]} 15. Rac1 {[%clk 0:02:03]}  Nf4 {[%clk 0:02:31]} 16. Bxf4 {[%clk 0:02:03]}  Qxf4 {[%clk 0:02:31]} 17. Bg4 {[%clk 0:02:00]}  Qf6 {[%clk 0:02:04]} 18. f4 {[%clk 0:01:45]}  Qd4+ {[%clk 0:01:57]} 19. Qxd4 {[%clk 0:01:44]}  Nxd4 {[%clk 0:01:58]} 20. Ne2 {[%clk 0:01:16]}  h5 {[%clk 0:01:57]} 21. Bf3 {[%clk 0:01:16]}  Nxe2+ {[%clk 0:01:41]} 22. Bxe2 {[%clk 0:01:15]}  Bd4+ {[%clk 0:01:41]} 23. Kh2 {[%clk 0:01:01]}  Be3 {[%clk 0:01:41]} 24. Rcd1 {[%clk 0:00:49]}  Bxf4+ {[%clk 0:01:41]} 25. g3 {[%clk 0:00:49]}  Be5 {[%clk 0:01:40]} 26. h4 {[%clk 0:00:50]}  Rxf1 {[%clk 0:01:32]} 27. Rxf1 {[%clk 0:00:51]}  b6 {[%clk 0:00:55]} 28. Kg2 {[%clk 0:00:49]}  d5 {[%clk 0:00:46]} 29. exd5 {[%clk 0:00:45]}  exd5 {[%clk 0:00:46]} 30. cxd5 {[%clk 0:00:41]}  Rc2 {[%clk 0:00:46]} 31. Kf3 {[%clk 0:00:29]}  Rc3+ {[%clk 0:00:33]} 32. Ke4 {[%clk 0:00:29]}  Bxg3 {[%clk 0:00:34]} 33. a4 {[%clk 0:00:20]}  Bxh4 {[%clk 0:00:32]} 34. a5 {[%clk 0:00:18]}  Rb3 {[%clk 0:00:20]} 35. a6 {[%clk 0:00:06]}  Rxb4+ {[%clk 0:00:19]} 36. Kd3 {[%clk 0:00:06]}  Bf6 {[%clk 0:00:19]} 37. Kc2 {[%clk 0:00:02]}  Rd4 {[%clk 0:00:18]} 38. Rf2 {[%clk 0:00:01]}  Kg7 {[%clk 0:00:16]} 39. Bf3 {[%clk 0:00:01]}  h4 {[%clk 0:00:16]} 40. Rg2 {[%clk 0:00:02]}  h3 {[%clk 0:00:15]} 41. Rh2 {[%clk 0:00:02]}  Rc4+ {[%clk 0:00:14]} 42. Kd3 {[%clk 0:00:02]}  Rc3+ {[%clk 0:00:14]} 43. Ke4 {[%clk 0:00:03]}  Rc4+ {[%clk 0:00:14]} 44. Kd3 {[%clk 0:00:03]}  Rh4 {[%clk 0:00:14]} 45. Ke3 {[%clk 0:00:03]}  Be5 {[%clk 0:00:14]} 46. Rh1 {[%clk 0:00:04]}  h2 {[%clk 0:00:15]} 47. Rc1 {[%clk 0:00:04]}  Bd4+ {[%clk 0:00:15]} 48. Kd3 {[%clk 0:00:04]}  Bg1 {[%clk 0:00:15]} 49. Bh1 {[%clk 0:00:05]}  Rd4+ {[%clk 0:00:15]} 50. Ke2 {[%clk 0:00:05]}  Ra4 {[%clk 0:00:14]} 51. Rc7 {[%clk 0:00:03]}  Rxa6 {[%clk 0:00:13]} 52. Rxe7+ {[%clk 0:00:03]}  Kf6 {[%clk 0:00:14]} 53. Re6+ {[%clk 0:00:03]}  Kf5 {[%clk 0:00:14]} 54. Be4+ {[%clk 0:00:03]}  Kf4 {[%clk 0:00:15]} 55. Bh1 {[%clk 0:00:03]}  g5 {[%clk 0:00:15]} 56. d6 {[%clk 0:00:03]}  Ra2+ {[%clk 0:00:14]} 57. Kd3 {[%clk 0:00:03]}  Ra4 {[%clk 0:00:14]} 58. Kc3 {[%clk 0:00:01]}  Rd4 {[%clk 0:00:14]} 59. Rf6+ {[%clk 0:00:02]}  Ke5 {[%clk 0:00:14]} 60. Rg6 {[%clk 0:00:02]}  Rxd6 {[%clk 0:00:14]} 61. Rxg5+ {[%clk 0:00:03]}  Kf4 {[%clk 0:00:14]} 62. Rg8 {[%clk 0:00:03]}  Ke3 {[%clk 0:00:14]} 63. Kc2 {[%clk 0:00:03]}  Rd2+ {[%clk 0:00:13]} 64. Kc1 {[%clk 0:00:03]}  Rf2 {[%clk 0:00:13]} 65. Re8+ {[%clk 0:00:04]}  Kd4 {[%clk 0:00:13]} 66. Rd8+ {[%clk 0:00:04]}  Kc5 {[%clk 0:00:14]} 67. Rc8+ {[%clk 0:00:05]}  Kb4 {[%clk 0:00:14]} 68. Kd1 {[%clk 0:00:05]}  Rb2 {[%clk 0:00:12]} 69. Kc1 {[%clk 0:00:04]}  Bd4 {[%clk 0:00:11]} 70. Rd8 {[%clk 0:00:05]}  Bc3 {[%clk 0:00:11]} 71. Rg8 {[%clk 0:00:04]}  Ra2 {[%clk 0:00:11]} 72. Rg4+ {[%clk 0:00:04]}  Ka5 {[%clk 0:00:11]} 73. Rg5+ {[%clk 0:00:04]}  b5 {[%clk 0:00:11]} 74. Bc6 {[%clk 0:00:04]}  Ra1+ {[%clk 0:00:10]} 75. Kc2 {[%clk 0:00:04]}  a6 {[%clk 0:00:10]} 76. Rh5 {[%clk 0:00:04]}  Bb4 {[%clk 0:00:06]} 77. Rh6 {[%clk 0:00:04]}  Bc5 {[%clk 0:00:05]} 78. Bb7 {[%clk 0:00:04]}  Kb4 {[%clk 0:00:06]} 79. Rh4+ {[%clk 0:00:03]}  Ka5 {[%clk 0:00:05]} 80. Rh6 {[%clk 0:00:03]}  Bb6 {[%clk 0:00:06]} 81. Kb2 {[%clk 0:00:02]}  Rg1 {[%clk 0:00:03]} 82. Kb3 {[%clk 0:00:03]}  Rg3+ {[%clk 0:00:03]} 83. Kb2 {[%clk 0:00:02]}  Rd3 {[%clk 0:00:02]} 84. Rxh2 {[%clk 0:00:02]}  Rd7 {[%clk 0:00:02]} 85. Be4 {[%clk 0:00:01]}  Bd4+ {[%clk 0:00:03]} 86. Kc2 {[%clk 0:00:01]}  Rd6 {[%clk 0:00:03]} 87. Rh3 {[%clk 0:00:02]}  Kb6 {[%clk 0:00:03]} 88. Kd3 {[%clk 0:00:03]}  a5 {[%clk 0:00:03]} 89. Rh7 {[%clk 0:00:04]}  a4 {[%clk 0:00:02]} 90. Rb7+ {[%clk 0:00:04]}  Kc5 {[%clk 0:00:02]} 91. Rh7 {[%clk 0:00:05]}  Kb4 {[%clk 0:00:02]} 92. Kc2 {[%clk 0:00:05]}  Rf6 {[%clk 0:00:02]} 93. Rh4 {[%clk 0:00:05]}  Rd6 {[%clk 0:00:01]} 94. Kd3 {[%clk 0:00:05]}  Kc5 {[%clk 0:00:02]} 95. Rh5+ {[%clk 0:00:05]}  Kb6 {[%clk 0:00:02]} 96. Bd5 {[%clk 0:00:05]}  Bc5 {[%clk 0:00:03]} 97. Ke4 {[%clk 0:00:05]}  Bb4 {[%clk 0:00:04]} 98. Rh8 {[%clk 0:00:05]}  a3 {[%clk 0:00:04]} 99. Rb8+ {[%clk 0:00:06]}  Ka5 {[%clk 0:00:04]} 100. Ra8+ {[%clk 0:00:06]}  Kb6 {[%clk 0:00:04]} 101. Rb8+ {[%clk 0:00:06]}  Ka6 {[%clk 0:00:04]} 102. Ra8+ {[%clk 0:00:06]}  Kb6 {[%clk 0:00:04]} 103. Rb8+ {[%clk 0:00:06]} 1/2-1/2


[Site "https://www.chess.com"]